Cogmind - Beta 15 @@@ ROGUE MODE // 2025.08.28 @ 01:38:12 Player: shapeshifter Result: Destroyed by G-47 Trooper with Particle Gun Performance ------------- Evolutions (2) 1000 Regions Visited (3) 600 Robots Destroyed (23) 115 Value Destroyed (561) 561 Prototype IDs (0) 0 Alien Tech Used (0) 0 Bonus (0) 0 TOTAL SCORE: 2276 Bonus ------- None Cogmind --------- Core Integrity 0/550 Matter 255/300 Energy 100/100 System Corruption 5% Temperature Cool (9) Movement Core (50) Location -8/Materials Parts ------- > --- POWER (1) -------- (None) > --- PROPULSION (3) --- (None) > --- UTILITY (4) ------ (None) > --- WEAPON (3) ------- Scythe > --- INVENTORY (5) ---- Hardened Medium Armor Plating Hardened Medium Armor Plating Heavy Particle Cannon Scythe Scythe Peak State ------------ > --- POWER ------------ Subdweller Power Source > --- PROPULSION ------- Subdweller Monowheel Subdweller Monowheel > --- UTILITY ---------- Small Storage Unit Seismic Detector > --- WEAPON ----------- Light Assault Rifle Light Assault Rifle > --- INVENTORY -------- Ion Engine Subdweller Power Source Light Treads Scrap Shield EM Pulse Gun Subdweller Beam Cannon Grenade Launcher [Rating: 11] Favorites ----------- Power Ion Engine Engine Ion Engine Propulsion Light Treads Treads Light Treads Wheel Subdweller Monowheel Flight Unit Flight Unit Utility Small Storage Unit Device Seismic Detector Storage Small Storage Unit Protection Hardened Medium Armor Plating Weapon Light Assault Rifle Energy Gun EM Pulse Gun Energy Cannon Subdweller Beam Cannon Ballistic Gun Light Assault Rifle Launcher Grenade Launcher Slashing Weapon Scythe Build | -11 -10 -10 -8 ------- Run | Yrd Mat Sub Mat Slots Evolved 4 | . . . 4 Power . | . . . . Propulsion 1 | . . . 1 Utility 2 | . . . 2 Weapon 1 | . . . 1 Parts Attached 23 | 7 1 4 11 Power 4 | 1 . 1 2 Engine 4 | 1 . 1 2 Core . | . . . . Reactor . | . . . . Propulsion 7 | 2 . 2 3 Treads 2 | 2 . . . Leg . | . . . . Wheel 2 | . . 2 . Hover . | . . . . Flight 3 | . . . 3 Utility 4 | 2 . . 2 Device 1 | 1 . . . Storage 1 | 1 . . . Processor . | . . . . Hackware . | . . . . Protection 2 | . . . 2 Artifact . | . . . . Weapon 8 | 2 1 1 4 Energy Gun 1 | 1 . . . Energy Cannon 2 | . . 1 1 Ballistic Gun 2 | 1 1 . . Ballistic Cannon . | . . . . Launcher 1 | . . . 1 Special Weapon . | . . . . Impact Weapon . | . . . . Slashing Weapon 2 | . . . 2 Piercing Weapon . | . . . . Special Melee Weapon . | . . . . Unidentified Prototypes . | . . . . Corrupted Parts 1 | . . . 1 System Corruption 2 | . . . 2 Parts Lost 8 | . . 1 7 Power 2 | . . . 2 Propulsion 4 | . . . 4 Utility 1 | . . 1 . Weapon 1 | . . . 1 Highest Loss Streak 4 | . . 1 4 To Critical Strikes . | . . . . Average Backups 5 | 2 4 5 6 Power . | . 1 1 . Propulsion 1 | 1 2 1 . Utility . | . . . 3 Weapon 2 | . 1 3 2 Tool/Special . | . . . . Unused Backups 12 | 2 . 4 6 Power 1 | . . 1 . Propulsion 2 | . . 2 . Utility 5 | 1 . 1 3 Weapon 4 | 1 . . 3 Tool/Special . | . . . . Average Slot Usage (%) 80 | . 100 96 41 Engine 11 | . 14 14 4 Treads 15 | . 28 16 5 Wheel 5 | . . 11 . Flight 1 | . . . 3 Device 8 | . 14 11 . Storage 11 | . 14 14 6 Energy Gun 1 | . 2 . 3 Energy Cannon 4 | . . 6 1 Ballistic Gun 18 | . 25 21 11 Peak Build Rating 11 | 7 7 11 11 Average Rating 7 | 5 7 8 7 On Entrance 5 | . 7 7 9 Naked Turns 5 | . . . 5 Heaviest Build 23 | 14 14 20 23 Greatest Support 40 | 40 40 40 20 Greatest Overweight (x) 1 | . . . 1 Average Overweight (x) . | . . . . Largest Inventory Capacity 8 | 8 8 8 8 Average Capacity 7 | 7 8 8 7 Most Carried 8 | 7 5 8 8 Average Carried 5 | 2 4 5 6 Final Capacity 8 | 8 8 8 5 Final Carried 5 | 3 5 5 5 Class Distribution -------------------- 75% | Mutant 14% | Scavenger-Mutant 7% | Gunner Dominant Class ---------------- Mutant | -10/Materials Mutant | -10/Subcaves Mutant | -8/Materials Resources | -11 -10 -10 -8 ----------- Run | Yrd Mat Sub Mat Matter Collected 622 | 281 64 95 182 Remotely . | . . . . Salvage Created 913 | 205 161 237 310 Parts 63 | 15 9 12 27 Haulers Intercepted . | . . . . Recyclers Shooed . | . . . . Parts Field Recycled . | . . . . Retrieved Matter . | . . . . Parts Self-Destructed 3 | . . 3 . Prevented . | . . . . Kills | -11 -10 -10 -8 ------- Run | Yrd Mat Sub Mat Combat Hostiles Destroyed 15 | . 4 2 9 Melee 2 | . . . 2 Guns 9 | . 4 . 5 Cannons 1 | . . 1 . AOE 2 | . . . 2 Classes Destroyed 8 | 2 1 . 5 Worker 1 | . . . 1 Builder 2 | . . . 2 Tunneler 4 | 4 . . . Recycler 1 | 1 . . . Swarmer 4 | . . . 4 Grunt 8 | . 4 2 2 Sentry 1 | . . . 1 Specialist 2 | . . . 2 Best Kill Streak 6 | 3 3 2 6 Combat Bots Only 4 | . 3 2 4 Max Kills in Single Turn 2 | 1 1 1 2 Gunslinging . | . . . . Exploded 1 | . . . 1 Melee 1 | . . . 1 Uniques/NPCs Destroyed . | . . . . Combat | -11 -10 -10 -8 -------- Run | Yrd Mat Sub Mat Hostile Shots Fired 198 | . 32 21 145 Missed 67 | . 7 8 52 Hits 131 | . 25 13 93 Projectile 131 | . 25 13 93 Critical Strikes 3 | . . . 3 Damage Taken 1677 | . 281 211 1185 Core 684 | . 80 48 556 Absorbed by Shields . | . . . . Core Remaining (%) 74 | 100 . 48 . Volleys Fired 96 | 11 27 35 23 Largest 3 | 2 2 2 3 Hottest 120 | 60 40 80 120 Shots Fired 190 | 22 54 60 54 Gun 167 | 22 54 50 41 Cannon 17 | . . 10 7 Launcher 6 | . . . 6 Special . | . . . . Kinetic 149 | 11 54 50 34 Thermal 17 | . . 10 7 Explosive 6 | . . . 6 Electromagnetic 18 | 11 . . 7 Robot Hit Streak 35 | 9 17 35 8 Robot Miss Streak 3 | 1 3 1 3 Penetration Max . | . . . . Secondary Targets 2 | . . . 2 Max Gunslinging Chain 1 | . . . 1 Shots Hit Robots 147 | 15 41 49 42 Core Hits 52 | 7 9 14 22 Critical Kills 1 | . . 1 . Critical Parts Destroyed 1 | . . . 1 Critical Strikes 6 | . . 1 5 Meltdown 1 | . . 1 . Destroy 1 | . . . 1 Sever 4 | . . . 4 Melee Attacks 15 | . . . 15 Impact . | . . . . Slashing 15 | . . . 15 Piercing . | . . . . Sneak Attacks 2 | . . . 2 Combat Hostiles 1 | . . . 1 Follow-up Attacks 2 | . . . 2 Damage Inflicted 2080 | 182 314 515 1069 Guns 1038 | 182 314 330 212 Cannons 296 | . . 185 111 Explosions 314 | . . . 314 Melee 432 | . . . 432 Ramming . | . . . . Kinetic 840 | 53 314 330 143 Thermal 296 | . . 185 111 Explosive 314 | . . . 314 Electromagnetic 198 | 129 . . 69 Impact . | . . . . Slashing 432 | . . . 432 Piercing . | . . . . Highest Corruption 5 | . . . 5 Average Corruption 4 | . . . 4 Corruption Purged . | . . . . Corruption Blocked . | . . . . Effects 5 | . . . 5 Message Errors 2 | . . . 2 Heat Flow Errors 1 | . . . 1 Energy Discharges 1 | . . . 1 Parts Rejected 1 | . . . 1 Overload Shots . | . . . . Overflow Damage . | . . . . Projectiles . | . . . . Explosions . | . . . . Melee . | . . . . Knockbacks . | . . . . Impact . | . . . . Kinetic . | . . . . Secondary . | . . . . Self-Inflicted Damage . | . . . . Shots . | . . . . Rammed . | . . . . Targets Rammed . | . . . . Kicked . | . . . . Crushed . | . . . . Highest Temperature 464 | 40 12 54 464 Average Temperature 105 | 16 7 32 198 Received Heat Transfer 612 | . 150 93 369 Effects 3 | . . . 3 Energy Bleed 1 | . . . 1 Short Circuit 2 | . . . 2 Siege Activations . | . . . . Martial Activations . | . . . . Shielding Activations . | . . . . Robots Disrupted . | . . . . Combat Hostiles . | . . . . Robots Corrupted . | . . . . Combat Hostiles . | . . . . Parts Fried 1 | 1 . . . Impact Corruptions . | . . . . Robots Melted 1 | . . 1 . Combat Hostiles 1 | . . 1 . Parts Melted 2 | . . 2 . Heat Transferred 407 | . . 259 148 Parts Sabotaged . | . . . . Parts Stolen . | . . . . Parts Stripped . | . . . . Power Chain Reactions . | . . . . Alert | -11 -10 -10 -8 ------- Run | Yrd Mat Sub Mat Maximum Alert Level . | . . . . Low Security (%) 100 | 100 100 . 100 Level 1 . | . . . . Level 2 . | . . . . Level 3 . | . . . . Level 4 . | . . . . Level 5 . | . . . . High Security . | . . . . Max Security . | . . . . Peak Influence 195 | 10 60 . 195 Initial . | . . . . Average 35 | 1 17 . 69 Influence Increases 517 | 25 95 50 347 Destroy 0b10 Robot/C 300 | . 80 40 180 Destroy 0b10 Robot/NC 40 | 25 . . 15 Destroy Leader 70 | . 10 10 50 Successful Hack 7 | . 5 . 2 Destroy Structure 25 | . . . 25 Partial Spotted 15 | . . . 15 Lose Combat Pursuer 60 | . . . 60 Influence Decreases 352 | 25 35 108 184 Entered New Map 31 | . . 29 2 Time Decay 251 | 25 35 79 112 Lost Part 70 | . . . 70 Squads Dispatched 4 | . 1 . 3 Investigation 1 | . 1 . . Extermination . | . . . . Reinforcement 3 | . . . 3 Assault . | . . . . Garrison . | . . . . Intercept . | . . . . Searches Triggered . | . . . . Construction Impeded 1 | . . . 1 Haulers Reinforced . | . . . . Active Scanning Responses . | . . . . Cargo Convoy Interrupts . | . . . . Stealth | -11 -10 -10 -8 --------- Run | Yrd Mat Sub Mat Distress Signals 1 | . . . 1 Communications Jammed . | . . . . Distress Signals . | . . . . Times Spotted 32 | . 4 4 24 Peak Tracking Total 10 | . 4 2 10 Tactical Retreats 3 | . . . 3 Traps | -11 -10 -10 -8 ------- Run | Yrd Mat Sub Mat Traps Triggered 2 | . . . 2 Indirectly . | . . . . Trap Hack Attempts . | . . . . Triggered . | . . . . Disarmed . | . . . . Reprogrammed . | . . . . Reused . | . . . . Traps Extracted . | . . . . Installed . | . . . . Triggered . | . . . . Machines | -11 -10 -10 -8 ---------- Run | Yrd Mat Sub Mat Machines Disabled . | . . . . Max in Single Turn . | . . . . Machines Repaired . | . . . . Machines Dismantled . | . . . . Machines Sabotaged . | . . . . Overloaded Fab Kills . | . . . . Hacking | -11 -10 -10 -8 --------- Run | Yrd Mat Sub Mat Machines Accessed 4 | . 1 . 3 Terminals 3 | . 1 . 2 Fabricators . | . . . . Repair Stations 1 | . . . 1 Recycling Units . | . . . . Scanalyzers . | . . . . Garrison Access . | . . . . Total Hacks 8 | . 3 . 5 Successful 3 | . 1 . 2 Failed 5 | . 2 . 3 Catastrophic 2 | . 1 . 1 Database Lockouts . | . . . . Manual 4 | . 2 . 2 Terminals 6 | . 3 . 3 Fabricators . | . . . . Repair Stations 2 | . . . 2 Recycling Units . | . . . . Scanalyzers . | . . . . Garrison Access . | . . . . Terminal Hacks 1 | . . . 1 Zone Layout 1 | . . . 1 Fabricator Hacks . | . . . . Repair Station Hacks 1 | . . . 1 Scan Component 1 | . . . 1 Recycling Unit Hacks . | . . . . Scanalyzer . | . . . . Garrison Access Hacks . | . . . . Unauthorized Hacks 1 | . 1 . . Terminals 1 | . 1 . . Botnet 1 | . 1 . . Fabricators . | . . . . Repair Stations . | . . . . Recycling Units . | . . . . Scanalyzers . | . . . . Garrison Access . | . . . . Data Cores Recovered . | . . . . Used . | . . . . Hacking Detections 3 | . 1 . 2 Full Trace Events 2 | . 1 . 1 Feedback Events . | . . . . Feedback Blocked . | . . . . Robot Schematics Acquired . | . . . . Robots Built . | . . . . Authchips . | . . . . Time . | . . . . Total Robot Build Rating . | . . . . Part Schematics Acquired . | . . . . Parts Built . | . . . . Authchips . | . . . . Time . | . . . . Total Part Build Rating . | . . . . Parts Repaired . | . . . . Time . | . . . . Parts Recycled . | . . . . Recycled Matter . | . . . . Retrieved Matter . | . . . . Retrieved Components . | . . . . Parts Scanalyzed . | . . . . Part Schematics Acquired . | . . . . Parts Damaged . | . . . . Bothacking | -11 -10 -10 -8 ------------ Run | Yrd Mat Sub Mat Used RIF Installer . | . . . . Robots Hacked . | . . . . Non-combat . | . . . . Combat . | . . . . Robot Hacks Applied . | . . . . Relay Couplers Released . | . . . . Fabnet Peak Effective % . | . . . . Robots Rewired . | . . . . Allies Hacked . | . . . . Hacks Repelled . | . . . . Allies | -11 -10 -10 -8 -------- Run | Yrd Mat Sub Mat Total Allies . | . . . . Largest Group . | . . . . Highest-Rated Group . | . . . . Highest-Rated Ally . | . . . . Total Orders . | . . . . Ally Attacks . | . . . . Total Damage . | . . . . Kills . | . . . . Allies Corrupted . | . . . . Allies Melted . | . . . . Intel | -11 -10 -10 -8 ------- Run | Yrd Mat Sub Mat Active Infowar (turns) 647 | 25 175 447 . Seismic 647 | 25 175 447 . Robot Analysis Total . | . . . . Derelict Logs Recovered . | . . . . Drone Launches . | . . . . Drone Recoveries . | . . . . Exploration | -11 -10 -10 -8 ------------- Run | Yrd Mat Sub Mat Turns Passed 1291 | 219 175 570 327 Spaces Moved 707 | 116 62 332 197 Core 51 | 15 . . 36 Treads 459 | 101 62 208 88 Legs . | . . . . Wheels 124 | . . 124 . Hover . | . . . . Flight 73 | . . . 73 Fastest Speed 34 | 50 160 110 34 Average Speed 131 | 145 160 141 96 Slowest Speed 240 | 160 160 160 240 Overloaded Moves . | . . . . Propulsion Burnouts . | . . . . Robots Hopped . | . . . . Potential Cave-ins 2 | . . . 2 Cave-ins Triggered . | . . . . Exploration Rate (%) 13 | 5 11 20 18 Regions Visited 3 Branch Regions 1 Pre-discovered Areas . | . . . . Known Exits Taken . | . . . . Unknown Exits Taken 3 | 1 1 1 . Scrap Searched . | . . . . Spaces Dug . | . . . . Terrain Destroyed 43 | . . . 43 Melee . | . . . . Projectile 2 | . . . 2 AOE 41 | . . . 41 Terrain Rammed . | . . . . Walls Destroyed . | . . . . Machines Disabled . | . . . . Actions | -11 -10 -10 -8 --------- Run | Yrd Mat Sub Mat Total 908 | 147 94 385 282 Wait 13 | . 3 . 10 Move 704 | 115 61 331 197 Hop . | . . . . Pick Up 34 | 12 2 7 13 Fast Attach 4 | . . . 4 Attach 19 | 7 . 1 11 Detach . | . . . . Swap 6 | . 1 4 1 Drop 20 | 2 . 7 11 Fire 96 | 11 27 35 23 Melee 12 | . . . 12 Ram . | . . . . Kick . | . . . . Crush . | . . . . Escape Stasis . | . . . . Rewire . | . . . . Trap . | . . . . Miscellaneous . | . . . . Route ------- -11/Scrapyard -10/Materials -10/Subcaves -8/Materials History --------- Turn | Location | Event 10 | -11/Scrapyard | Discovered new exit (range 16) 220 | -11/Scrapyard | Entered Materials 318 | -10/Materials | Build established: Mutant 363 | -10/Materials | Discovered new exit (range 6) 395 | -10/Materials | Entered Subcaves 720 | -10/Subcaves | Discovered new exit (range 15) 964 | -10/Subcaves | Core integrity fell below 50% 965 | -10/Subcaves | Entered Materials 965 | -8/Materials | Evolved 4 slots: Propulsion x1, Utility x2, Weapon x1 1263 | -8/Materials | Core integrity fell below 50% 1287 | -8/Materials | Core integrity fell below 20% 1292 | -8/Materials | Destroyed by G-47 Trooper with Particle Gun Last Messages --------------- 01249_ System corrupted: Scythe rejected. 01249_ Y-45 Defender destroyed. 01249_ K-01 Serf collects debris. 01251_ Hadron Collector disabled. 01252_ Acquired 50 matter. 01252_ K-01 Serf collects debris. 01254_ Sneak attack on G-50 Soldier. 01254_ G-50 Soldier destroyed. 01255_ R-06 Scavenger collects Adv. Heat Sink. 01255_ K-01 Serf collects debris. 01257_ R-06 Scavenger destroyed. 01258_ K-01 Serf collects debris. 01260_ Acquired 69 matter. 01260_ K-01 Serf collects debris. 01265_ Y-45 Defender Hvy. Assault Rifle severed. 01267_ W-25 Informer sends out distress signal. 01270_ 8UHF:E/K&QW3ZV%KN#O P5QXXQ 01275_ Flight Unit destroyed. 01279_ Connecting with Terminal... 01279_ Terminal unresponsive. Map ----- +----------------------------------------------------+ | | | | | | | | | | | | | | | | | | | #??????###########???????????????????????????????? | | #??????# ???????????????????????????????? | | #??????# """ """ "???????????????????????????????? | | #?????## """ """ ????????????????????????????????? | | ###???# """ """ ????????????????????????????????? | | ###### ?????????????????????????????????? | | # # #?# ?????????????????????????????????? | | #########+##????????????????????????????????? | | # ####="""" # #?#######????????????????????????? | | * ="""" + # !!! #????????????????????????? | | #/ """ # # !! #????????????????????????? | | ## ## [= /* + !! #????????##########??????? | | ## ! #%= ####### #????????# #??????? | | # #### #[ #???##########???# """ #??????? | | ###??########!! #???# Y ##T##### """ #??????? | | #???????????#= ##### # """ #??????? | | #???????????# Y Y ggg@ + #??????? | | #???????????# ##### g Y # """ %#??????? | | ############# #???# h ###+####! """ #??????? | | """ ## #???#######??????# """ #??????? | | "Y" """ ## #????????????????# #??????? | | """ ## #????????????????##########??????? | | """ ## #????????????????????????????????? | | ## #????????????????????????????????? | | ! ## #????????????????????????????????? | | ## #????????????????????????????????? | | ######### ### #????????????????????????????????? | | ##??????###?# ?????????????????????????????????? | | #??????????# ?????????????????????????????????? | | #??????????# ?????????????????????????????????? | | #??????????# ?????????????????????????????????? | | ????????????# ?????????????????????????????????? | | ????????????# ?????????????????????????????????? | | ????????????? ?????????????????????????????????? | | ?????????????????????????????????????????????????? | | ?????????????????????????????????????????????????? | | ?????????????????????????????????????????????????? | | ?????????????????????????????????????????????????? | | ?????????????????????????????????????????????????? | | ?????????????????????????????????????????????????? | | ?????????????????????????????????????????????????? | +----------------------------------------------------+ Best States ------------- Heat Dissipation 31 Energy Generation 15 Energy Capacity 250 Matter Stores 300 Matter Capacity 300 Sight Range 16 Terrain Scan Density 10 Armor Coverage 225 Evasion (%) 63 Recoil Reduction 2 Item Schematics ----------------- None Robot Schematics ------------------ None Fabricated ------------ Nothing Repaired ---------- Nothing Alien Tech Used ----------------- None Achievements -------------- None Challenges ------------ None Game ------ Seed CoreReactiveDoomcannon Manual? 0 Play Time 00:11:36 Cumulative 212.3 hours Start 2025.08.28 @ 01:29:38 End 2025.08.28 @ 01:38:12 Sessions 1 Manual Loads 0 Difficulty Rogue Special Mode None Game No. 321 Rogue 321 Adventurer 0 Explorer 0 Win Type - Total 4 Types 3/0/1/0/0/0/0/0/0/0 Lore% 80 Gallery% 75 Achievement% 57 Wizard Run 0 Options --------- Layout 1 ASCII 0 Keyboard 0 Movement Mouse Keybinds 0 Fullscreen 1 Font 32/SmallcapsGlow Map View 50x35 Zoom Use 0% Tactical HUD 1 Map Filters NONE Filters NONE Steam 1 RUN: 5e4b0e4a-cfeb-4be1-baea-2ecb2d6a516e